[Event "50th Ciudad Sevilla 2024"]
[Site "Sevilla"]
[Date "2025.01.13"]
[Round "3.1"]
[White "Xu, Xiangyu"]
[Black "Anand, Batsukh"]
[Result "1-0"]
[Annotator "RC"]
[ECO "E01"]
[WhiteElo "2611"]
[BlackElo "2234"]
[PlyCount "123"]
[EventDate "2025.01.10"]
[EventType "swiss"]
[EventCountry "ESP"]
[SourceTitle "playchess.com"]
[Source "ChessBase"]
[SourceQuality "1"]
[TimeControl "90+30"]

1. d4 {[%emt 0:00:00]} Nf6 {[%emt 0:00:00]} 2. c4 {[%emt 0:00:00]} e6 {[%emt 0:00:00]} 3. g3 {[%emt 0:00:00]} d5 {[%emt 0:00:00]} 4. Bg2 {[%emt 0:00:00]} Bb4+ {[%emt 0:00:00]} 5. Nd2 {[%emt 0:00:00]} O-O {[%emt 0:00:00]} 6. Ngf3 {[%emt 0:00:00]} Nc6 {[%emt 0:00:00]} 7. Qc2 {[%emt 0:00:00]} dxc4 {[%emt 0:00:00]} 8. Qxc4 {[%emt 0:00:00]} Bd6 {[%emt 0:00:00]} 9. Qc2 {[%emt 0:00:00]} Re8 {[%emt 0:00:00]} 10. O-O {[%emt 0:00:00]} e5 {[%emt 0:00:00]} 11. dxe5 {[%emt 0:00:00]} Nxe5 {[%emt 0:00:00]} 12. Nxe5 {[%emt 0:00:00]} Bxe5 {[%emt 0:00:00]} 13. Nc4 {[%emt 0:00:00]} c6 {[%emt 0:00:00]} 14. Nxe5 {[%emt 0:00:00]} Rxe5 {[%emt 0:00:00]} 15. e4 {[%emt 0:00:00]} Qe7 {[%emt 0:00:00]} 16. Bf4 {[%emt 0:00:00]} Rh5 {[%emt 0:00:00]} 17. h4 {[%emt 0:00:00]} Bg4 {[%emt 0:00:00]} 18. f3 {[%emt 0:00:00]} Be6 {[%emt 0:00:00]} 19. Rfd1 {[%emt 0:00:00]} Qc5+ {[%emt 0:00:00]} 20. Qxc5 {[%emt 0:00:00]} Rxc5 {[%emt 0:00:00]} 21. Bf1 {[%emt 0:00:00]} Nd7 {[%emt 0:00:00]} 22. Rd2 {[%emt 0:00:00]} Ne5 {[%emt 0:00:00]} 23. Kf2 {[%emt 0:00:00]} f6 {[%emt 0:00:00]} 24. a4 {[%emt 0:00:00]} b6 {[%emt 0:00:00]} 25. Be2 {[%emt 0:00:00]} Kf7 {[%emt 0:00:00]} 26. Ke1 {[%emt 0:00:00]} Re8 {[%emt 0:00:00]} 27. Be3 {[%emt 0:00:00]} Nc4 {[%emt 0:00:00]} 28. Bxc5 {[%emt 0:00:00]} Nxd2 {[%emt 0:00:00]} 29. Kxd2 {[%emt 0:00:00]} bxc5 {[%emt 0:00:00]} 30. Rc1 {[%emt 0:00:00]} Rb8 {[%emt 0:00:00]} 31. Rxc5 {[%emt 0:00:00]} Rxb2+ {[%emt 0:00:00]} 32. Ke3 {[%emt 0:00:00]} Rb3+ {[%emt 0:00:00]} 33. Kf4 {[%emt 0:00:00]} Rb4 {[%emt 0:00:00]} 34. Ra5 {[%emt 0:00:00]} Rb7 {[%emt 0:00:00]} 35. Ke3 {[%emt 0:00:00]} Ke7 {[%emt 0:00:00]} 36. f4 {[%emt 0:00:00]} Rb3+ {[%emt 0:00:00]} 37. Kd4 {[%emt 0:00:00]} Rb7 {[%emt 0:00:00]} 38. Kc5 {[%emt 0:00:00]} Kd7 {[%emt 0:00:00]} 39. Ra6 {[%emt 0:00:00]} Rc7 {[%emt 0:00:00]} 40. a5 {[%emt 0:03:27]} h6 {[%emt 0:00:00]} 41. Bd1 {[%emt 0:05:00]} Bh3 {[%emt 0:00:00]} 42. h5 {[%emt 0:00:03]} f5 {[%emt 0:00:00]} 43. exf5 {[%emt 0:00:03]} Bxf5 {[%emt 0:00:00]} 44. Bf3 {[%emt 0:00:12]} Bd3 {[%emt 0:00:00]} 45. Bg4+ {[%emt 0:01:07]} Kd8 {[%emt 0:00:00]} 46. Rxc6 {[%emt 0:00:04]} Be4 {[%emt 0:00:00]} 47. Rxc7 {[%emt 0:00:05]} Kxc7 {[%emt 0:00:00]} 48. Kd4 {[%emt 0:00:03]} Bc2 {[%emt 0:00:39]} 49. Ke5 {[%emt 0:00:03]} Bb3 {[%emt 0:00:40]} 50. f5 {[%emt 0:01:21]} Kc6 {[%emt 0:01:40]} 51. f6 {[%emt 0:01:19]} gxf6+ {[%emt 0:00:16]} 52. Kxf6 {[%emt 0:00:05]} Kb5 {[%emt 0:00:19]} 53. Kg6 {[%emt 0:00:03]} Kxa5 {[%emt 0:00:17]} 54. Kxh6 {[%emt 0:00:05]} Bc2 {[%emt 0:10:28]} 55. Kg5 {[%emt 0:01:44]} Kb4 {[%emt 0:00:32]} 56. Bf5 {[%emt 0:00:06]} Bb3 {[%emt 0:02:26]} 57. h6 {[%emt 0:00:07]} Bg8 {[%emt 0:00:03]} 58. Kf6 {[%emt 0:00:04]} a5 {[%emt 0:00:09]} 59. Kg7 {[%emt 0:00:31]} a4 {[%emt 0:01:20]} 60. Kxg8 {[%emt 0:00:09]} a3 {[%emt 0:00:02]} 61. Be6 {[%emt 0:00:05]} a2 {[%emt 0:00:39]} 62. Bxa2 {[%emt 0:00:06]} 1-0

[Event "50th Ciudad Sevilla 2024"]
[Site "Sevilla"]
[Date "2025.01.13"]
[Round "3.2"]
[White "Evenshaug, Amadeus Hestvik"]
[Black "Iturrizaga Bonelli, Eduardo"]
[Result "0-1"]
[Annotator "ChessBase"]
[ECO "B35"]
[WhiteElo "2225"]
[BlackElo "2574"]
[PlyCount "56"]
[EventDate "2025.01.10"]
[EventType "swiss"]
[EventCountry "ESP"]
[SourceTitle "playchess.com"]
[Source "ChessBase"]
[SourceQuality "1"]
[TimeControl "90+30"]

1. e4 {[%emt 0:00:00]} c5 {[%emt 0:00:00]} 2. Nf3 {[%emt 0:00:00]} Nc6 {[%emt 0:00:00]} 3. d4 {[%emt 0:00:00]} cxd4 {[%emt 0:00:00]} 4. Nxd4 {[%emt 0:00:00]} g6 {[%emt 0:00:00]} 5. Nc3 {[%emt 0:00:00]} Bg7 {[%emt 0:00:00]} 6. Be3 {[%emt 0:00:00]} Nf6 {[%emt 0:00:00]} 7. Bc4 {[%emt 0:00:00]} Qa5 {[%emt 0:00:00]} 8. f3 {[%emt 0:00:00]} Qb4 {[%emt 0:00:00]} 9. Ndb5 {[%emt 0:00:00]} O-O {[%emt 0:00:00]} 10. Bb3 {[%emt 0:00:00]} a6 {[%emt 0:00:00]} 11. a3 {[%emt 0:00:00]} Qa5 {[%emt 0:00:00]} 12. Nd4 {[%emt 0:00:00]} b5 {[%emt 0:00:00]} 13. Qd2 {[%emt 0:00:00]} Bb7 {[%emt 0:00:00]} 14. O-O-O {[%emt 0:00:00]} Qc7 {[%emt 0:00:00]} 15. g4 {[%emt 0:00:00]} Ne5 {[%emt 0:00:00]} 16. h4 {[%emt 0:00:00]} h5 {[%emt 0:00:00]} 17. gxh5 {[%emt 0:00:00]} Nxh5 {[%emt 0:00:00]} 18. Rhg1 {[%emt 0:00:00]} Rac8 {[%emt 0:00:00]} 19. f4 {[%emt 0:00:00]} Nc4 {[%emt 0:00:00]} 20. Bxc4 {[%emt 0:00:00]} Qxc4 {[%emt 0:00:00]} 21. f5 {[%emt 0:00:00]} Nf6 {[%emt 0:00:00]} 22. fxg6 {[%emt 0:00:00]} Nxe4 {[%emt 0:00:00]} 23. Nxe4 {[%emt 0:00:00]} Bxe4 {[%emt 0:00:00]} 24. gxf7+ {[%emt 0:00:00]} Rxf7 {[%emt 0:00:00]} 25. Bh6 {[%emt 0:00:00]} Qa2 {[%emt 0:00:00]} 26. Qe3 {[%emt 0:00:00]} Bxc2 {[%emt 0:00:00]} 27. Rxg7+ {[%emt 0:00:00]} Rxg7 {[%emt 0:00:00]} 28. Nxc2 {[%emt 0:00:00]} Rg2 {[%emt 0:00:00]} 0-1

[Event "50th Ciudad Sevilla 2024"]
[Site "Sevilla"]
[Date "2025.01.13"]
[Round "3.3"]
[White "Santamaria Fernandez, Guillermo"]
[Black "Agdestein, Simen"]
[Result "0-1"]
[Annotator "ChessBase"]
[ECO "B30"]
[WhiteElo "2207"]
[BlackElo "2564"]
[PlyCount "78"]
[EventDate "2025.01.10"]
[EventType "swiss"]
[EventCountry "ESP"]
[SourceTitle "playchess.com"]
[Source "ChessBase"]
[SourceQuality "1"]
[TimeControl "90+30"]

1. e4 {[%emt 0:00:00]} c5 {[%emt 0:00:00]} 2. Nf3 {[%emt 0:00:00]} Nc6 {[%emt 0:00:00]} 3. Bb5 {[%emt 0:00:00]} Nf6 {[%emt 0:00:00]} 4. e5 {[%emt 0:00:00]} Nd5 {[%emt 0:00:00]} 5. Nc3 {[%emt 0:00:00]} Nxc3 {[%emt 0:00:00]} 6. dxc3 {[%emt 0:00:00]} Qc7 {[%emt 0:00:00]} 7. Bf4 {[%emt 0:00:00]} a6 {[%emt 0:00:00]} 8. Bc4 {[%emt 0:00:00]} e6 {[%emt 0:00:00]} 9. a4 {[%emt 0:00:00]} h6 {[%emt 0:00:00]} 10. h4 {[%emt 0:00:00]} b6 {[%emt 0:00:00]} 11. Qd3 {[%emt 0:00:00]} Bb7 {[%emt 0:00:00]} 12. Rd1 {[%emt 0:00:00]} Na5 {[%emt 0:00:00]} 13. Nd2 {[%emt 0:00:00]} Qc6 {[%emt 0:00:00]} 14. b3 {[%emt 0:00:00]} Qxg2 {[%emt 0:00:00]} 15. Rh3 {[%emt 0:00:00]} Rd8 {[%emt 0:00:00]} 16. Qg3 {[%emt 0:00:00]} Qxg3 {[%emt 0:00:00]} 17. Rxg3 {[%emt 0:00:00]} g6 {[%emt 0:00:00]} 18. Bd3 {[%emt 0:00:00]} d5 {[%emt 0:00:00]} 19. c4 {[%emt 0:00:00]} dxc4 {[%emt 0:00:00]} 20. bxc4 {[%emt 0:01:02]} Rd4 {[%emt 0:00:00]} 21. Be3 {[%emt 0:01:17]} Rxh4 {[%emt 0:00:00]} 22. Rb1 {[%emt 0:00:20]} Kd7 {[%emt 0:00:00]} 23. Rxb6 {[%emt 0:01:39]} Kc7 {[%emt 0:00:00]} 24. Rb1 {[%emt 0:01:43]} Rh1+ {[%emt 0:00:00]} 25. Ke2 {[%emt 0:00:54]} Rxb1 {[%emt 0:00:00]} 26. Nxb1 {[%emt 0:00:08]} Nc6 {[%emt 0:00:00]} 27. f4 {[%emt 0:01:19]} Nd4+ {[%emt 0:00:00]} 28. Bxd4 {[%emt 0:03:06]} cxd4 {[%emt 0:00:00]} 29. Nd2 {[%emt 0:00:07]} Bb4 {[%emt 0:00:00]} 30. Nf3 {[%emt 0:00:39]} Rd8 {[%emt 0:00:00]} 31. Rh3 {[%emt 0:01:33]} Bf8 {[%emt 0:00:00]} 32. Nh2 {[%emt 0:02:30]} a5 {[%emt 0:00:00]} 33. Ng4 {[%emt 0:00:36]} h5 {[%emt 0:00:00]} 34. Nf6 {[%emt 0:00:05]} Bh6 {[%emt 0:00:00]} 35. Ne4 {[%emt 0:01:37]} Bc6 {[%emt 0:00:00]} 36. Ng5 {[%emt 0:00:40]} Bxg5 {[%emt 0:00:00]} 37. fxg5 {[%emt 0:00:02]} Bxa4 {[%emt 0:00:00]} 38. Be4 {[%emt 0:01:03]} Bc6 {[%emt 0:00:00]} 39. Kd3 {[%emt 0:00:32]} a4 {[%emt 0:00:00]} 0-1

[Event "50th Ciudad Sevilla 2024"]
[Site "Sevilla"]
[Date "2025.01.13"]
[Round "3.4"]
[White "Li, Di"]
[Black "Sanhueza, Cristian"]
[Result "1-0"]
[Annotator "ChessBase"]
[ECO "E71"]
[WhiteElo "2544"]
[BlackElo "2219"]
[PlyCount "65"]
[EventDate "2025.01.10"]
[EventType "swiss"]
[EventCountry "ESP"]
[SourceTitle "playchess.com"]
[Source "ChessBase"]
[SourceQuality "1"]
[TimeControl "90+30"]

1. d4 {[%emt 0:00:00]} Nf6 {[%emt 0:00:00]} 2. c4 {[%emt 0:00:00]} g6 {[%emt 0:00:00]} 3. Nc3 {[%emt 0:00:00]} Bg7 {[%emt 0:00:00]} 4. e4 {[%emt 0:00:00]} d6 {[%emt 0:00:00]} 5. h3 {[%emt 0:00:00]} O-O {[%emt 0:00:00]} 6. Be3 {[%emt 0:00:00]} e5 {[%emt 0:00:00]} 7. d5 {[%emt 0:00:00]} Na6 {[%emt 0:00:00]} 8. g4 {[%emt 0:00:00]} Nc5 {[%emt 0:00:00]} 9. f3 {[%emt 0:00:00]} a5 {[%emt 0:00:00]} 10. Qd2 {[%emt 0:00:00]} c6 {[%emt 0:00:00]} 11. Nge2 {[%emt 0:00:00]} a4 {[%emt 0:00:00]} 12. Nc1 {[%emt 0:00:00]} cxd5 {[%emt 0:00:00]} 13. cxd5 {[%emt 0:00:00]} Nfd7 {[%emt 0:00:00]} 14. Nd3 {[%emt 0:00:00]} f5 {[%emt 0:00:00]} 15. gxf5 {[%emt 0:00:00]} gxf5 {[%emt 0:00:00]} 16. O-O-O {[%emt 0:00:00]} Kh8 {[%emt 0:00:00]} 17. Rg1 {[%emt 0:00:00]} fxe4 {[%emt 0:00:00]} 18. fxe4 {[%emt 0:00:00]} Nxd3+ {[%emt 0:00:00]} 19. Bxd3 {[%emt 0:00:00]} Nc5 {[%emt 0:00:00]} 20. Bxc5 {[%emt 0:00:00]} dxc5 {[%emt 0:00:00]} 21. Kb1 {[%emt 0:00:00]} Qh4 {[%emt 0:00:00]} 22. Bb5 {[%emt 0:00:00]} a3 {[%emt 0:00:00]} 23. Qg2 {[%emt 0:00:00]} Bh6 {[%emt 0:00:00]} 24. Rd3 {[%emt 0:00:00]} axb2 {[%emt 0:01:20]} 25. Rg3 {[%emt 0:00:00]} Qd8 {[%emt 0:01:26]} 26. Rg7 {[%emt 0:00:00]} Bf5 {[%emt 0:03:23]} 27. exf5 {[%emt 0:00:00]} Qf6 {[%emt 0:00:02]} 28. Rg3 {[%emt 0:00:00]} Bf4 {[%emt 0:00:50]} 29. Ne4 {[%emt 0:00:00]} Qxf5 {[%emt 0:04:34]} 30. Ra3 {[%emt 0:00:00]} Bh6 {[%emt 0:01:09]} 31. Rxa8 {[%emt 0:00:00]} Rxa8 {[%emt 0:00:05]} 32. Qg4 {[%emt 0:00:00]} Qf7 {[%emt 0:01:41]} 33. Qe6 {[%emt 0:00:00]} 1-0

[Event "50th Ciudad Sevilla 2024"]
[Site "Sevilla"]
[Date "2025.01.13"]
[Round "3.5"]
[White "Midoux, Sebastien"]
[Black "Makhnev, Denis"]
[Result "0-1"]
[Annotator "ChessBase"]
[ECO "B06"]
[WhiteElo "2188"]
[BlackElo "2532"]
[PlyCount "90"]
[EventDate "2025.01.10"]
[EventType "swiss"]
[EventCountry "ESP"]
[SourceTitle "playchess.com"]
[Source "ChessBase"]
[SourceQuality "1"]
[TimeControl "90+30"]

1. e4 {[%emt 0:00:00]} g6 {[%emt 0:00:00]} 2. d4 {[%emt 0:00:00]} d6 {[%emt 0:00:00]} 3. Nc3 {[%emt 0:00:00]} a6 {[%emt 0:00:00]} 4. Be3 {[%emt 0:00:00]} Bg7 {[%emt 0:00:00]} 5. g4 {[%emt 0:00:00]} b5 {[%emt 0:00:00]} 6. Bg2 {[%emt 0:00:00]} Bb7 {[%emt 0:00:00]} 7. h4 {[%emt 0:00:00]} h6 {[%emt 0:00:00]} 8. Nce2 {[%emt 0:00:00]} Nd7 {[%emt 0:00:00]} 9. Ng3 {[%emt 0:00:00]} c5 {[%emt 0:00:00]} 10. c3 {[%emt 0:00:00]} cxd4 {[%emt 0:00:00]} 11. cxd4 {[%emt 0:00:00]} Nb6 {[%emt 0:00:00]} 12. b3 {[%emt 0:00:00]} e6 {[%emt 0:00:00]} 13. Rc1 {[%emt 0:00:00]} Nd7 {[%emt 0:00:00]} 14. h5 {[%emt 0:00:00]} g5 {[%emt 0:00:00]} 15. Nh3 {[%emt 0:00:00]} Qa5+ {[%emt 0:00:00]} 16. Qd2 {[%emt 0:00:00]} Qxd2+ {[%emt 0:00:00]} 17. Kxd2 {[%emt 0:00:00]} Kd8 {[%emt 0:00:00]} 18. Rc2 {[%emt 0:00:00]} Ne7 {[%emt 0:00:00]} 19. f3 {[%emt 0:00:00]} Nc6 {[%emt 0:00:00]} 20. Ne2 {[%emt 0:00:00]} Nb4 {[%emt 0:00:00]} 21. Rb2 {[%emt 0:00:00]} Rc8 {[%emt 0:00:00]} 22. Nf2 {[%emt 0:00:00]} Ke7 {[%emt 0:00:00]} 23. Nd3 {[%emt 0:00:00]} Nxd3 {[%emt 0:00:00]} 24. Kxd3 {[%emt 0:00:00]} Rhd8 {[%emt 0:00:00]} 25. Rc2 {[%emt 0:00:00]} Ne5+ {[%emt 0:00:00]} 26. Kd2 {[%emt 0:00:00]} Rxc2+ {[%emt 0:00:00]} 27. Kxc2 {[%emt 0:00:00]} Nc6 {[%emt 0:00:00]} 28. Kd2 {[%emt 0:00:00]} d5 {[%emt 0:00:00]} 29. e5 {[%emt 0:00:00]} f6 {[%emt 0:00:00]} 30. exf6+ {[%emt 0:01:02]} Bxf6 {[%emt 0:00:00]} 31. Rc1 {[%emt 0:05:58]} Rg8 {[%emt 0:00:00]} 32. Bf2 {[%emt 0:01:05]} Kd7 {[%emt 0:00:00]} 33. Rd1 {[%emt 0:02:46]} Nb4 {[%emt 0:00:00]} 34. Nc3 {[%emt 0:02:43]} Rc8 {[%emt 0:00:00]} 35. Bf1 {[%emt 0:02:17]} e5 {[%emt 0:00:00]} 36. a3 {[%emt 0:00:56]} exd4 {[%emt 0:00:00]} 37. Nb1 {[%emt 0:02:44]} Rc2+ {[%emt 0:00:54]} 38. Ke1 {[%emt 0:00:04]} Nc6 {[%emt 0:00:07]} 39. Bd3 {[%emt 0:00:36]} Rb2 {[%emt 0:00:17]} 40. Nd2 {[%emt 0:00:57]} Be5 {[%emt 0:00:39]} 41. Rb1 {[%emt 0:00:32]} Ra2 {[%emt 0:00:09]} 42. a4 {[%emt 0:00:45]} Bf4 {[%emt 0:00:47]} 43. Nf1 {[%emt 0:00:19]} Ne5 {[%emt 0:00:14]} 44. Be2 {[%emt 0:00:36]} d3 {[%emt 0:00:55]} 45. Bd1 {[%emt 0:00:13]} d4 {[%emt 0:00:20]} 0-1

[Event "50th Ciudad Sevilla 2024"]
[Site "Sevilla"]
[Date "2025.01.13"]
[Round "3.6"]
[White "Vignesh N R"]
[Black "Eliseev, Sergey"]
[Result "1-0"]
[Annotator "ChessBase"]
[ECO "B53"]
[WhiteElo "2523"]
[BlackElo "2174"]
[PlyCount "65"]
[EventDate "2025.01.10"]
[EventType "swiss"]
[EventCountry "ESP"]
[SourceTitle "playchess.com"]
[Source "ChessBase"]
[SourceQuality "1"]
[TimeControl "90+30"]

1. e4 {[%emt 0:00:00]} c5 {[%emt 0:00:00]} 2. Nf3 {[%emt 0:00:00]} d6 {[%emt 0:00:00]} 3. d4 {[%emt 0:00:00]} cxd4 {[%emt 0:00:00]} 4. Qxd4 {[%emt 0:00:00]} Nc6 {[%emt 0:00:00]} 5. Bb5 {[%emt 0:00:00]} Bd7 {[%emt 0:00:00]} 6. Qd3 {[%emt 0:00:00]} g6 {[%emt 0:00:00]} 7. c4 {[%emt 0:00:00]} Bg7 {[%emt 0:00:00]} 8. O-O {[%emt 0:00:00]} Nf6 {[%emt 0:00:00]} 9. h3 {[%emt 0:00:00]} O-O {[%emt 0:00:00]} 10. Nc3 {[%emt 0:00:00]} a6 {[%emt 0:00:00]} 11. Bxc6 {[%emt 0:00:00]} Bxc6 {[%emt 0:00:00]} 12. Nd4 {[%emt 0:00:00]} Rc8 {[%emt 0:00:00]} 13. Be3 {[%emt 0:00:00]} Nd7 {[%emt 0:00:00]} 14. Rac1 {[%emt 0:00:00]} Ne5 {[%emt 0:00:00]} 15. Qe2 {[%emt 0:00:00]} Bd7 {[%emt 0:00:00]} 16. b3 {[%emt 0:00:00]} Nc6 {[%emt 0:00:00]} 17. Rfd1 {[%emt 0:00:00]} Nxd4 {[%emt 0:00:00]} 18. Bxd4 {[%emt 0:00:00]} Bxd4 {[%emt 0:00:00]} 19. Rxd4 {[%emt 0:00:00]} Be6 {[%emt 0:00:00]} 20. e5 {[%emt 0:00:00]} Qb6 {[%emt 0:00:00]} 21. Rcd1 {[%emt 0:00:00]} dxe5 {[%emt 0:00:00]} 22. Qxe5 {[%emt 0:00:00]} Qc7 {[%emt 0:00:00]} 23. Qe3 {[%emt 0:00:00]} Rfd8 {[%emt 0:00:00]} 24. Na4 {[%emt 0:00:00]} b5 {[%emt 0:04:15]} 25. Nb6 {[%emt 0:00:00]} Rb8 {[%emt 0:01:54]} 26. c5 {[%emt 0:00:00]} a5 {[%emt 0:01:52]} 27. Qg3 {[%emt 0:00:00]} Rxd4 {[%emt 0:00:47]} 28. Qxc7 {[%emt 0:00:00]} Rxd1+ {[%emt 0:00:02]} 29. Kh2 {[%emt 0:00:00]} Rbd8 {[%emt 0:00:46]} 30. c6 {[%emt 0:00:00]} h5 {[%emt 0:04:46]} 31. Qxe7 {[%emt 0:00:00]} R8d6 {[%emt 0:01:12]} 32. c7 {[%emt 0:00:00]} R6d2 {[%emt 0:01:47]} 33. Qxe6 {[%emt 0:00:00]} 1-0

[Event "50th Ciudad Sevilla 2024"]
[Site "Sevilla"]
[Date "2025.01.13"]
[Round "3.7"]
[White "Doraszelski, Alexander"]
[Black "Kvaloy, Aksel Bu"]
[Result "0-1"]
[Annotator "ChessBase"]
[ECO "B92"]
[WhiteElo "2171"]
[BlackElo "2487"]
[PlyCount "66"]
[EventDate "2025.01.10"]
[EventType "swiss"]
[EventCountry "ESP"]
[SourceTitle "playchess.com"]
[Source "ChessBase"]
[SourceQuality "1"]
[TimeControl "90+30"]

1. e4 {[%emt 0:00:00]} c5 {[%emt 0:00:00]} 2. Nf3 {[%emt 0:00:00]} d6 {[%emt 0:00:00]} 3. d4 {[%emt 0:00:00]} cxd4 {[%emt 0:00:00]} 4. Nxd4 {[%emt 0:00:00]} Nf6 {[%emt 0:00:00]} 5. Nc3 {[%emt 0:00:00]} a6 {[%emt 0:00:00]} 6. Be2 {[%emt 0:00:00]} e5 {[%emt 0:00:00]} 7. Nb3 {[%emt 0:00:00]} Be7 {[%emt 0:00:00]} 8. Be3 {[%emt 0:00:00]} Be6 {[%emt 0:00:00]} 9. Nd5 {[%emt 0:00:00]} Nbd7 {[%emt 0:00:00]} 10. Qd3 {[%emt 0:00:00]} O-O {[%emt 0:00:00]} 11. a4 {[%emt 0:00:00]} Bxd5 {[%emt 0:00:00]} 12. exd5 {[%emt 0:00:00]} b6 {[%emt 0:00:00]} 13. c4 {[%emt 0:00:00]} a5 {[%emt 0:00:00]} 14. g4 {[%emt 0:00:00]} Nc5 {[%emt 0:00:00]} 15. Qc2 {[%emt 0:00:00]} Nxb3 {[%emt 0:00:00]} 16. Qxb3 {[%emt 0:00:00]} Nd7 {[%emt 0:00:00]} 17. h4 {[%emt 0:00:00]} Nc5 {[%emt 0:00:00]} 18. Qc2 {[%emt 0:00:00]} Qd7 {[%emt 0:00:00]} 19. g5 {[%emt 0:00:00]} f5 {[%emt 0:00:00]} 20. gxf6 {[%emt 0:00:00]} Bxf6 {[%emt 0:00:00]} 21. Bxc5 {[%emt 0:00:00]} bxc5 {[%emt 0:00:00]} 22. Qe4 {[%emt 0:00:00]} Be7 {[%emt 0:00:00]} 23. Bd3 {[%emt 0:00:00]} g6 {[%emt 0:00:00]} 24. h5 {[%emt 0:00:00]} Rf4 {[%emt 0:00:00]} 25. Qe2 {[%emt 0:00:00]} Bh4 {[%emt 0:00:00]} 26. O-O-O {[%emt 0:00:00]} Rxf2 {[%emt 0:00:00]} 27. Qe3 {[%emt 0:00:00]} Qxa4 {[%emt 0:00:00]} 28. Rd2 {[%emt 0:00:00]} Qa1+ {[%emt 0:00:00]} 29. Bb1 {[%emt 0:00:00]} Rxd2 {[%emt 0:00:00]} 30. Qxd2 {[%emt 0:00:00]} Rf8 {[%emt 0:02:09]} 31. hxg6 {[%emt 0:00:00]} Rf2 {[%emt 0:01:29]} 32. gxh7+ {[%emt 0:00:00]} Kh8 {[%emt 0:00:09]} 33. Rg1 {[%emt 0:00:00]} Qxb1+ {[%emt 0:00:36]} 0-1

[Event "50th Ciudad Sevilla 2024"]
[Site "Sevilla"]
[Date "2025.01.13"]
[Round "3.8"]
[White "Mitusov, Semen"]
[Black "Zhao, Shengxin"]
[Result "1-0"]
[Annotator "ChessBase"]
[ECO "B94"]
[WhiteElo "2463"]
[BlackElo "2158"]
[PlyCount "55"]
[EventDate "2025.01.10"]
[EventType "swiss"]
[EventCountry "ESP"]
[SourceTitle "playchess.com"]
[Source "ChessBase"]
[SourceQuality "1"]
[TimeControl "90+30"]

1. e4 {[%emt 0:00:00]} c5 {[%emt 0:00:00]} 2. Nf3 {[%emt 0:00:00]} d6 {[%emt 0:00:00]} 3. d4 {[%emt 0:00:00]} cxd4 {[%emt 0:00:00]} 4. Nxd4 {[%emt 0:00:00]} Nf6 {[%emt 0:00:00]} 5. Nc3 {[%emt 0:00:00]} a6 {[%emt 0:00:00]} 6. Bg5 {[%emt 0:00:00]} Nbd7 {[%emt 0:00:00]} 7. Qe2 {[%emt 0:00:00]} e6 {[%emt 0:00:00]} 8. f4 {[%emt 0:00:00]} Qc7 {[%emt 0:00:00]} 9. O-O-O {[%emt 0:00:00]} Be7 {[%emt 0:00:00]} 10. g4 {[%emt 0:00:00]} h6 {[%emt 0:00:00]} 11. Bh4 {[%emt 0:00:00]} g5 {[%emt 0:00:00]} 12. fxg5 {[%emt 0:00:00]} Nh7 {[%emt 0:00:00]} 13. Nf5 {[%emt 0:00:00]} hxg5 {[%emt 0:00:00]} 14. Bg3 {[%emt 0:00:00]} Ne5 {[%emt 0:00:00]} 15. Nxe7 {[%emt 0:00:00]} Kxe7 {[%emt 0:00:00]} 16. h4 {[%emt 0:00:00]} Bd7 {[%emt 0:00:00]} 17. Qd2 {[%emt 0:00:00]} f6 {[%emt 0:00:00]} 18. Be2 {[%emt 0:00:00]} b5 {[%emt 0:00:00]} 19. a3 {[%emt 0:00:00]} Nf7 {[%emt 0:00:00]} 20. Rhf1 {[%emt 0:00:00]} gxh4 {[%emt 0:00:00]} 21. Bxh4 {[%emt 0:00:00]} Nhg5 {[%emt 0:00:00]} 22. Bxg5 {[%emt 0:00:00]} Nxg5 {[%emt 0:00:00]} 23. Rxf6 {[%emt 0:00:00]} Kxf6 {[%emt 0:00:00]} 24. e5+ {[%emt 0:00:00]} dxe5 {[%emt 0:00:00]} 25. Rf1+ {[%emt 0:00:00]} Ke7 {[%emt 0:00:00]} 26. Qxg5+ {[%emt 0:00:00]} Kd6 {[%emt 0:00:00]} 27. Rd1+ {[%emt 0:00:00]} Kc6 {[%emt 0:00:00]} 28. Bf3+ {[%emt 0:00:00]} 1-0

[Event "50th Ciudad Sevilla 2024"]
[Site "Sevilla"]
[Date "2025.01.13"]
[Round "3.9"]
[White "Rodriguez Garcia, Manuel Francisco"]
[Black "Urazayev, Arystanbek"]
[Result "0-1"]
[Annotator "ChessBase"]
[ECO "A16"]
[WhiteElo "2136"]
[BlackElo "2448"]
[PlyCount "68"]
[EventDate "2025.01.10"]
[EventType "swiss"]
[EventCountry "ESP"]
[SourceTitle "playchess.com"]
[Source "ChessBase"]
[SourceQuality "1"]
[TimeControl "90+30"]

1. c4 {[%emt 0:00:00]} Nf6 {[%emt 0:00:00]} 2. Nc3 {[%emt 0:00:00]} g6 {[%emt 0:00:00]} 3. g3 {[%emt 0:00:00]} Bg7 {[%emt 0:00:00]} 4. Bg2 {[%emt 0:00:00]} O-O {[%emt 0:00:00]} 5. d3 {[%emt 0:00:00]} d6 {[%emt 0:00:00]} 6. e4 {[%emt 0:00:00]} c5 {[%emt 0:00:00]} 7. Nge2 {[%emt 0:00:00]} Nc6 {[%emt 0:00:00]} 8. O-O {[%emt 0:00:00]} Ne8 {[%emt 0:00:00]} 9. Be3 {[%emt 0:00:00]} Nc7 {[%emt 0:00:00]} 10. d4 {[%emt 0:00:00]} cxd4 {[%emt 0:00:00]} 11. Nxd4 {[%emt 0:00:00]} Ne6 {[%emt 0:00:00]} 12. Nde2 {[%emt 0:00:00]} Nc5 {[%emt 0:00:00]} 13. h3 {[%emt 0:00:00]} a5 {[%emt 0:00:00]} 14. f4 {[%emt 0:00:00]} a4 {[%emt 0:00:00]} 15. Qd2 {[%emt 0:00:00]} Na5 {[%emt 0:00:00]} 16. Bxc5 {[%emt 0:00:00]} dxc5 {[%emt 0:00:00]} 17. Qxd8 {[%emt 0:00:00]} Rxd8 {[%emt 0:00:00]} 18. Rad1 {[%emt 0:00:00]} Be6 {[%emt 0:00:00]} 19. Nxa4 {[%emt 0:00:00]} Bxc4 {[%emt 0:00:00]} 20. Bf3 {[%emt 0:00:00]} Bd4+ {[%emt 0:00:00]} 21. Kg2 {[%emt 0:00:00]} Bxa2 {[%emt 0:00:00]} 22. Nxd4 {[%emt 0:00:00]} cxd4 {[%emt 0:00:00]} 23. Nb6 {[%emt 0:02:40]} Ra6 {[%emt 0:00:00]} 24. b4 {[%emt 0:00:32]} Nc6 {[%emt 0:00:00]} 25. Nd5 {[%emt 0:00:43]} Bc4 {[%emt 0:00:00]} 26. Rf2 {[%emt 0:01:08]} b5 {[%emt 0:00:00]} 27. Rfd2 {[%emt 0:02:06]} Kg7 {[%emt 0:00:00]} 28. f5 {[%emt 0:02:39]} gxf5 {[%emt 0:00:00]} 29. Nf4 {[%emt 0:00:01]} fxe4 {[%emt 0:00:00]} 30. Bxe4 {[%emt 0:00:28]} e5 {[%emt 0:00:00]} 31. Nh5+ {[%emt 0:00:40]} Kf8 {[%emt 0:00:00]} 32. Rf2 {[%emt 0:00:36]} Nxb4 {[%emt 0:00:00]} 33. Nf6 {[%emt 0:01:43]} Ke7 {[%emt 0:00:00]} 34. Nxh7 {[%emt 0:00:47]} Nd5 {[%emt 0:00:00]} 0-1